fUSD/lending_fUSD_20250506
["ID","MTS","AMOUNT","RATE_DAILY","PERIOD"]
[360036031,1746502245140,-450.0,0.00019999,2]
[360036032,1746502245149,-6068.61,0.00019999,2]
[360036033,1746502245159,-450.0,0.00019999,2]
[360036034,1746502245169,-6068.61,0.00019999,2]
[360036035,1746502245178,-450.0,0.00019999,2]
[360036036,1746502245188,-6068.61,0.00019999,2]
[360036037,1746502245198,-450.0,0.00019999,2]
[360036038,1746502245207,-6068.61,0.00019999,2]
[360036039,1746502245216,-450.0,0.00019999,2]
[360036040,1746502245226,-6068.61,0.00019999,2]
[360036041,1746502245235,-143.35038829,0.00019999,2]
[360036042,1746502245412,-306.64961171,0.00019999,2]
[360036043,1746502245425,-693.24370829,0.00019999,2]
[360036044,1746502245438,-367.27409663,0.00019999,2]
[360036045,1746502245488,-820.50355063,0.00019889,2]
[360036046,1746502245496,-4005.76155039,0.00019999,2]
[360036048,1746502246080,-519.58739999,0.00019996,2]
[360036049,1746502246089,-126.17228917,0.00019999,2]
[360036054,1746502246556,-876.15835552,0.00019999,2]
[360036056,1746502246565,-123.84164448,0.00019999,2]
[360036058,1746502246576,-3570.7164856,0.00019999,2]
[360036060,1746502246587,-280.45,0.00019999,2]
[360036062,1746502246598,-2093.60186992,0.00019999,2]
[360036064,1746502246608,-450.0,0.00019999,2]
[360036066,1746502246620,-6068.61,0.00019999,2]
[360036068,1746502246629,-450.0,0.00019999,2]
[360036070,1746502246640,-6068.61,0.00019999,2]
[360036072,1746502246649,-6068.61,0.00019999,2]
[360036074,1746502246659,-6068.61,0.00019999,2]
[360036076,1746502246669,-6068.61,0.00019999,2]
[360036080,1746502246693,-6068.61,0.00019999,2]
[360036081,1746502246703,-6068.81,0.00019999,2]
[360036082,1746502246713,-450.0,0.00019999,2]
[360036083,1746502246722,-335.03624383,0.00019999,2]
[360036084,1746502246731,-798.78,0.00019999,2]
[360036085,1746502246740,-798.78,0.00019999,2]
[360036086,1746502246749,-798.78,0.00019999,2]
[360036087,1746502246758,-798.78,0.00019999,2]
[360036088,1746502246767,-798.78,0.00019999,2]
[360036089,1746502246776,-798.78,0.00019999,2]
[360036090,1746502246785,-798.78,0.00019999,2]
[360036091,1746502246794,-798.78,0.00019999,2]
[360036092,1746502246804,-798.78,0.00019999,2]
[360036093,1746502246813,-798.78,0.00019999,2]
[360036094,1746502246822,-798.78,0.00019999,2]
[360036095,1746502246831,-798.78,0.00019999,2]
[360036096,1746502246841,-798.78,0.00019999,2]
[360036097,1746502246850,-798.78,0.00019999,2]
[360036098,1746502246861,-798.78,0.00019999,2]
[360036099,1746502246870,-798.78,0.00019999,2]
[360036100,1746502246879,-798.78,0.00019999,2]
[360036101,1746502246888,-798.78,0.00019999,2]
[360036102,1746502246898,-798.78,0.00019999,2]
[360036103,1746502246907,-798.99,0.00019999,2]
[360036104,1746502246916,-151.11134013,0.00019999,2]
[360036105,1746502246925,-889.0,0.00019999,2]
[360036106,1746502246935,-4831.48228943,0.0002,2]
[360036107,1746502246947,-15680.57486744,0.0002,2]
[360036108,1746502246958,-16330.3829492,0.0002,2]
[360036109,1746502246970,-2291.00974343,0.0002,2]
[360036110,1746502246981,-857.30599154,0.0002,2]
[360036111,1746502246992,-1554.47266402,0.0002,2]
[360036112,1746502297597,687.4,0.00017839,2]
[360036117,1746502367035,500.0,0.00029589,30]
[360036118,1746502367617,500.0,0.00029863,35]
[360036119,1746502441662,158.48,0.00016712,2]
[360036121,1746502482108,250.0,0.00017,2]
[360036122,1746502483173,300.0,0.00019,2]
[360036123,1746502504788,150.88,0.00019,2]
[360036124,1746502506341,150.88,0.00019,2]
[360036125,1746502508133,150.88,0.00019,2]
[360036126,1746502509741,150.88,0.00019,2]
[360036127,1746502511515,150.88,0.00019,2]
[360036128,1746502621606,500.0,0.000301,120]
[360036130,1746502863343,1000.0,0.00018969,2]
[360036131,1746502900783,246.83,0.00019015,2]
[360036132,1746502954352,500.0,0.00029589,30]
[360036133,1746502954582,500.0,0.00029863,35]
[360036134,1746502995769,500.0,0.00029589,30]
[360036135,1746502995993,500.0,0.00029863,30]
[360036136,1746503005822,3181.83,0.00030137,120]
[360036139,1746503037062,4626.33,0.00018964,2]
[360036144,1746503320735,200.0,0.0003,30]
[360036147,1746503326020,653.03,0.00017108,2]
[360036148,1746503326252,653.03,0.00019371,2]
[360036150,1746503332644,200.0,0.0003,30]
[360036160,1746503386359,1907.30354743,0.000195,4]
[360036168,1746503432226,-200.0,0.00019725,2]
[360036169,1746503432236,-250.0,0.00019728,2]
[360036170,1746503432245,-1200.0,0.00019738,2]
[360036171,1746503432255,-180.74709101,0.00019739,2]
[360036172,1746503432283,-119.25290899,0.00019739,2]
[360036173,1746503432293,-196.68709101,0.00019739,2]
[360036174,1746503432334,-103.31290899,0.00019739,2]
[360036175,1746503432344,-446.68709101,0.0001974,2]
[360036176,1746503432355,-800.0,0.0001974,2]
[360036181,1746503438345,-5215.58168455,0.0001974,2]
[360036182,1746503438507,-2061.69451339,0.0001974,2]
[360036188,1746503440432,-648.0197877,0.0001974,2]
[360036189,1746503440489,-1031.49408805,0.0001974,2]
[360036190,1746503440500,-200.0,0.000198,2]
[360036191,1746503440513,-207.4,0.00019887,2]
[360036192,1746503440522,-270.2771,0.00019896,2]
[360036193,1746503440531,-890.165,0.00019896,2]
[360036194,1746503440541,-183.57101622,0.00019898,2]
[360036195,1746503440551,-588.81721612,0.00019898,2]
[360036196,1746503440560,-1000.0,0.00019898,2]
[360036197,1746503440569,-315.69530754,0.00019899,2]
[360036198,1746503440579,-450.0,0.00019899,2]
[360036199,1746503440589,-459.76754831,0.00019899,2]
[360036200,1746503440598,-450.0,0.00019899,2]
[360036201,1746503440607,-525.35605769,0.00019899,2]
[360036202,1746503440617,-461.22329815,0.00019899,2]
[360036203,1746503440626,-568.14759759,0.00019899,2]
[360036204,1746503440635,-514.20490005,0.00019899,2]
[360036205,1746503440644,-466.67150706,0.00019899,2]
[360036206,1746503440653,-450.0,0.00019899,2]
[360036207,1746503440663,-450.0,0.00019899,2]
[360036208,1746503440672,-456.37100599,0.00019899,2]
[360036209,1746503440681,-461.11135999,0.00019899,2]
[360036210,1746503440690,-559.72453057,0.00019899,2]
[360036211,1746503440700,-450.37,0.00019899,2]
[360036212,1746503440712,-450.0,0.00019899,2]
[360036213,1746503440722,-176.18230561,0.00019899,2]
[360036214,1746503440731,-520.44792012,0.00019899,2]
[360036215,1746503440740,-476.41857828,0.00019899,2]
[360036216,1746503440749,-450.0,0.00019899,2]
[360036217,1746503440758,-450.0,0.00019899,2]
[360036218,1746503440767,-545.28170828,0.00019899,2]
[360036219,1746503440777,-500.15,0.00019899,2]
[360036220,1746503440786,-450.0,0.00019899,2]
[360036221,1746503440795,-450.0,0.00019899,2]
[360036222,1746503440804,-450.0,0.00019899,2]
[360036223,1746503440813,-450.0,0.00019899,2]
[360036224,1746503440822,-450.0,0.00019899,2]
[360036225,1746503440831,-384.76460689,0.00019899,2]
[360036226,1746503440841,-450.0,0.00019899,2]
[360036227,1746503440850,-450.0,0.00019899,2]
[360036228,1746503440859,-450.0,0.00019899,2]
[360036229,1746503440868,-4287.58,0.00019899,2]
[360036230,1746503440878,-450.0,0.00019899,2]
[360036231,1746503440887,-450.0,0.00019899,2]
[360036232,1746503440896,-450.0,0.00019899,2]
[360036233,1746503440906,-450.0,0.00019899,2]
[360036234,1746503440916,-583.61,0.00019899,2]
[360036235,1746503440925,-265.35,0.00019899,2]
[360036236,1746503440935,-450.0,0.00019899,2]
[360036237,1746503440944,-450.0,0.00019899,2]
[360036238,1746503440954,-458.38836522,0.00019899,2]
[360036239,1746503440963,-450.0,0.00019899,2]
[360036240,1746503440973,-450.0,0.00019899,2]
[360036241,1746503440982,-450.0,0.00019899,2]
[360036242,1746503440991,-450.0,0.00019899,2]
[360036243,1746503441000,-313.33201111,0.00019899,2]
[360036244,1746503441012,-450.0,0.00019899,2]
[360036245,1746503441021,-450.0,0.00019899,2]
[360036246,1746503441030,-518.19,0.00019899,2]
[360036247,1746503441040,-580.44,0.00019899,2]
[360036248,1746503441049,-450.0,0.00019899,2]
[360036249,1746503441059,-210.20106527,0.00019899,2]
[360036250,1746503441070,-210.20106518,0.00019899,2]
[360036251,1746503441079,-210.20106518,0.00019899,2]
[360036252,1746503441088,-210.20106518,0.00019899,2]
[360036253,1746503441098,-210.20106518,0.00019899,2]
[360036254,1746503441107,-210.20106518,0.000199,2]
[360036255,1746503441118,-210.20106518,0.000199,2]
[360036257,1746503441128,-210.20106518,0.000199,2]
[360036258,1746503441137,-210.20106518,0.000199,2]
[360036259,1746503441146,-230.8313414,0.000199,2]
[360036260,1746503441156,-910.0,0.000199,2]
[360036261,1746503441168,-210.20106518,0.000199,2]
[360036262,1746503441176,-500.0,0.00019973,2]
[360036263,1746503441186,-18066.274143,0.00019986,2]
[360036264,1746503441198,-865.7018791,0.00019986,2]
[360036265,1746503441207,-2665.3208117,0.00019986,2]
[360036266,1746503441217,-500.0,0.00019991,2]
[360036267,1746503441226,-500.0,0.00019991,2]
[360036268,1746503441236,-500.0,0.00019991,2]
[360036269,1746503441246,-500.0,0.00019991,2]
[360036270,1746503441256,-420.94371373,0.00019991,2]
[360036271,1746503441267,-500.0,0.00019991,2]
[360036272,1746503441277,-500.0,0.00019991,2]
[360036273,1746503441286,-500.0,0.00019991,2]
[360036274,1746503441295,-500.0,0.00019991,2]
[360036275,1746503441304,-500.0,0.00019991,2]
[360036276,1746503441314,-500.0,0.00019991,2]
[360036277,1746503441323,-500.0,0.00019991,2]
[360036278,1746503441332,-500.0,0.00019991,2]
[360036279,1746503441341,-500.0,0.00019991,2]
[360036280,1746503441351,-500.0,0.00019991,2]
[360036281,1746503441360,-500.0,0.00019991,2]
[360036282,1746503441369,-500.0,0.00019991,2]
[360036283,1746503441378,-500.0,0.00019991,2]
[360036284,1746503441387,-500.0,0.00019991,2]
[360036285,1746503441396,-500.0,0.00019991,2]
[360036286,1746503441405,-500.0,0.00019991,2]
[360036287,1746503441415,-500.0,0.00019991,2]
[360036288,1746503441424,-500.0,0.00019991,2]
[360036289,1746503441433,-500.0,0.00019991,2]
[360036290,1746503441442,-500.0,0.00019991,2]
[360036291,1746503441452,-500.0,0.00019991,2]
[360036292,1746503441461,-500.0,0.00019991,2]
[360036293,1746503441471,-500.0,0.00019991,2]
[360036294,1746503441480,-630.86215012,0.00019991,2]
[360036295,1746503441489,-500.0,0.00019991,2]
[360036296,1746503441498,-500.0,0.00019991,2]
[360036297,1746503441509,-500.0,0.00019991,2]
[360036298,1746503441519,-500.0,0.00019991,2]
[360036299,1746503441528,-500.0,0.00019991,2]
[360036300,1746503441537,-500.0,0.00019991,2]
[360036301,1746503441546,-500.0,0.00019991,2]
[360036302,1746503441556,-500.0,0.00019991,2]
[360036303,1746503441566,-500.0,0.00019991,2]
[360036304,1746503441576,-500.0,0.00019991,2]
[360036305,1746503441589,-500.0,0.00019991,2]
[360036306,1746503441599,-500.0,0.00019991,2]
[360036307,1746503441609,-600.0,0.00019991,2]
[360036308,1746503441619,-500.0,0.00019991,2]
[360036309,1746503441628,-500.0,0.00019991,2]
[360036310,1746503441637,-500.0,0.00019991,2]
[360036311,1746503441647,-500.0,0.00019991,2]
[360036312,1746503441656,-500.0,0.00019991,2]
[360036313,1746503441666,-500.0,0.00019991,2]
[360036314,1746503441675,-500.0,0.00019991,2]
[360036315,1746503441686,-500.0,0.00019991,2]
[360036316,1746503441695,-500.0,0.00019991,2]
[360036317,1746503441704,-500.0,0.00019991,2]
[360036318,1746503441714,-500.0,0.00019991,2]
[360036319,1746503441724,-500.0,0.00019991,2]
[360036320,1746503441733,-500.0,0.00019991,2]
[360036321,1746503441743,-500.0,0.00019991,2]
[360036322,1746503441752,-500.0,0.00019991,2]
[360036323,1746503441761,-500.0,0.00019991,2]
[360036324,1746503441771,-500.0,0.00019991,2]
[360036325,1746503441780,-500.0,0.00019991,2]
[360036326,1746503441790,-500.0,0.00019991,2]
[360036327,1746503441799,-500.0,0.00019991,2]
[360036328,1746503441809,-500.0,0.00019991,2]
[360036329,1746503441819,-500.0,0.00019991,2]
[360036330,1746503441828,-500.0,0.00019991,2]
[360036331,1746503441838,-500.0,0.00019991,2]
[360036332,1746503441847,-500.0,0.00019991,2]
[360036333,1746503441856,-500.0,0.00019991,2]
[360036334,1746503441865,-500.0,0.00019991,2]
[360036335,1746503441875,-500.0,0.00019991,2]
[360036336,1746503441884,-500.0,0.00019991,2]
[360036337,1746503441893,-500.0,0.00019991,2]
[360036338,1746503441903,-500.0,0.00019991,2]
[360036339,1746503441913,-500.0,0.00019991,2]
[360036340,1746503441923,-500.0,0.00019991,2]
[360036341,1746503441933,-500.0,0.00019991,2]
[360036342,1746503441942,-450.0,0.00019996,2]
[360036343,1746503441952,-450.0,0.00019997,2]
[360036344,1746503441961,-450.0,0.00019997,2]
[360036345,1746503441970,-450.0,0.00019997,2]
[360036346,1746503441980,-189.94333007,0.00019997,2]
[360036347,1746503441989,-450.0,0.00019997,2]
[360036348,1746503441999,-450.0,0.00019997,2]
[360036349,1746503442008,-450.0,0.00019997,2]
[360036350,1746503442017,-450.0,0.00019997,2]
[360036351,1746503442028,-446.27742573,0.00019997,2]
[360036352,1746503442037,-376.76412708,0.00019997,2]
[360036353,1746503442046,-450.0,0.00019997,2]
[360036354,1746503442055,-450.0,0.00019997,2]
[360036355,1746503442065,-450.0,0.00019997,2]
[360036356,1746503442074,-450.0,0.00019997,2]
[360036357,1746503442083,-470.0,0.00019997,2]
[360036358,1746503442093,-554.64211063,0.00019997,2]
[360036359,1746503442102,-450.0,0.00019997,2]
[360036360,1746503442111,-219.90919077,0.00019997,2]
[360036361,1746503442121,-450.0,0.00019998,2]
[360036362,1746503442130,-473.98,0.00019998,2]
[360036363,1746503442139,-450.0,0.00019998,2]
[360036364,1746503442148,-751.542,0.00019998,2]
[360036365,1746503442158,-175.6442106,0.00019998,2]
[360036366,1746503442167,-232.5,0.00019998,2]
[360036367,1746503442176,-300.9904945,0.00019998,2]
[360036368,1746503442186,-500.0,0.00019998,2]
[360036369,1746503442195,-222.40757012,0.00019998,2]
[360036370,1746503442204,-500.0,0.00019998,2]
[360036371,1746503442214,-450.0,0.00019998,2]
[360036372,1746503442224,-485.77,0.00019998,2]
[360036373,1746503442234,-450.0,0.00019998,2]
[360036374,1746503442243,-450.0,0.00019998,2]
[360036375,1746503442253,-150.47,0.00019998,2]
[360036376,1746503442263,-450.0,0.00019998,2]
[360036377,1746503442272,-399.41,0.00019998,2]
[360036378,1746503442282,-450.0,0.00019998,2]
[360036379,1746503442291,-450.0,0.00019998,2]
[360036380,1746503442301,-450.0,0.00019998,2]
[360036381,1746503442310,-4287.58,0.00019998,2]
[360036382,1746503442319,-4287.58,0.00019998,2]
[360036383,1746503442329,-4287.58,0.00019998,2]
[360036384,1746503442339,-4287.58,0.00019998,2]
[360036385,1746503442349,-4287.58,0.00019998,2]
[360036386,1746503442358,-211.4667648,0.00019998,2]
[360036387,1746503442367,-543.12013927,0.00019998,2]
[360036388,1746503442377,-450.0,0.00019998,2]
[360036389,1746503442386,-450.0,0.00019998,2]
[360036390,1746503442396,-301.48,0.00019998,2]
[360036391,1746503442405,-450.0,0.00019998,2]
[360036392,1746503442415,-580.44,0.00019998,2]
[360036393,1746503442424,-580.44,0.00019998,2]
[360036394,1746503442435,-580.44,0.00019998,2]
[360036395,1746503442444,-580.44,0.00019998,2]
[360036396,1746503442453,-580.44,0.00019998,2]
[360036397,1746503442463,-450.0,0.00019998,2]
[360036398,1746503442475,-450.0,0.00019998,2]
[360036399,1746503442485,-450.0,0.00019998,2]
[360036400,1746503442494,-450.0,0.00019998,2]
[360036401,1746503442505,-150.0,0.00019998,2]
[360036402,1746503442515,-450.0,0.00019998,2]
[360036403,1746503442524,-425.0,0.00019998,2]
[360036404,1746503442534,-450.0,0.00019998,2]
[360036405,1746503442544,-3101.1,0.00019998,2]
[360036406,1746503442554,-3101.1,0.00019998,2]
[360036407,1746503442563,-574.91375254,0.00019998,2]
[360036408,1746503442692,-450.0,0.00019998,2]
[360036409,1746503442723,-450.0,0.00019998,2]
[360036410,1746503442733,-569.50365886,0.00019998,2]
[360036411,1746503442742,-464.34,0.00019998,2]
[360036412,1746503442751,-450.0,0.00019998,2]
[360036413,1746503442760,-450.0,0.00019998,2]
[360036414,1746503442770,-234.83685557,0.00019998,2]
[360036415,1746503442779,-450.0,0.00019998,2]
[360036416,1746503442788,-450.0,0.00019998,2]
[360036417,1746503442797,-450.0,0.00019998,2]
[360036418,1746503442807,-245.90788639,0.00019998,2]
[360036419,1746503442816,-450.0,0.00019998,2]
[360036420,1746503442825,-463.16366444,0.00019998,2]
[360036421,1746503442835,-253.21977317,0.00019998,2]
[360036422,1746503442844,-450.0,0.00019998,2]
[360036423,1746503442853,-450.0,0.00019998,2]
[360036424,1746503442862,-420.32390231,0.00019998,2]
[360036425,1746503442871,-450.0,0.00019998,2]
[360036426,1746503442880,-450.0,0.00019998,2]
[360036427,1746503442889,-321.84515191,0.00019998,2]
[360036428,1746503442898,-419.24485588,0.00019998,2]
[360036429,1746503442907,-464.20271004,0.00019998,2]
[360036430,1746503442917,-162.52189223,0.00019998,2]
[360036431,1746503442926,-450.0,0.00019998,2]
[360036432,1746503442935,-450.0,0.00019998,2]
[360036433,1746503442944,-450.0,0.00019998,2]
[360036434,1746503442953,-207.67752259,0.00019998,2]
[360036435,1746503442962,-502.8446364,0.00019998,2]
[360036436,1746503442971,-450.0,0.00019998,2]
[360036437,1746503442980,-450.0,0.00019998,2]
[360036438,1746503442989,-450.0,0.00019998,2]
[360036439,1746503442998,-450.0,0.00019998,2]
[360036440,1746503443008,-450.0,0.00019998,2]
[360036441,1746503443019,-450.0,0.00019998,2]
[360036442,1746503443028,-450.0,0.00019998,2]
[360036443,1746503443037,-299.31856176,0.00019998,2]
[360036444,1746503443047,-450.0,0.00019998,2]
[360036445,1746503443057,-380.59086615,0.00019998,2]
[360036446,1746503443067,-450.0,0.00019998,2]
[360036447,1746503443076,-450.0,0.00019998,2]
[360036448,1746503443085,-515.24663202,0.00019998,2]
[360036449,1746503443094,-450.0,0.00019998,2]
[360036450,1746503443103,-418.18482729,0.00019998,2]
[360036451,1746503443113,-450.0,0.00019998,2]
[360036452,1746503443122,-450.0,0.00019998,2]
[360036453,1746503443132,-500.0,0.00019998,2]
[360036454,1746503443141,-450.0,0.00019998,2]
[360036455,1746503443150,-450.0,0.00019998,2]
[360036456,1746503443159,-519.86930951,0.00019998,2]
[360036457,1746503443169,-469.10441773,0.00019998,2]
[360036458,1746503443178,-450.0,0.00019998,2]
[360036459,1746503443187,-450.0,0.00019998,2]
[360036460,1746503443197,-203.31526286,0.00019998,2]
[360036462,1746503443207,-150.0,0.00019998,2]
[360036463,1746503443216,-7541.1,0.00019998,2]
[360036464,1746503443225,-7541.1,0.00019998,2]
[360036465,1746503443235,-450.0,0.00019998,2]
[360036466,1746503443244,-490.28766509,0.00019998,2]
[360036467,1746503443253,-434.57839927,0.00019998,2]
[360036469,1746503443263,-486.52973085,0.00019998,2]
[360036470,1746503443271,-450.0,0.00019998,2]
[360036471,1746503443281,-450.0,0.00019998,2]
[360036472,1746503443291,-450.0,0.00019998,2]
[360036473,1746503443302,-450.0,0.00019998,2]
[360036474,1746503443312,-450.0,0.00019998,2]
[360036475,1746503443321,-450.0,0.00019998,2]
[360036476,1746503443331,-389.19083672,0.00019998,2]
[360036477,1746503443340,-183.23719913,0.00019998,2]
[360036478,1746503443351,-450.0,0.00019998,2]
[360036479,1746503443360,-487.04203067,0.00019998,2]
[360036480,1746503443369,-150.0,0.00019998,2]
[360036481,1746503443379,-450.0,0.00019998,2]
[360036482,1746503443388,-450.0,0.00019998,2]
[360036483,1746503443397,-500.0,0.00019998,2]
[360036484,1746503443407,-500.0,0.00019998,2]
[360036485,1746503443417,-152.04642897,0.00019998,2]
[360036486,1746503443427,-150.0,0.00019998,2]
[360036487,1746503443437,-2534.88,0.00019998,2]
[360036488,1746503443446,-2534.88,0.00019998,2]
[360036489,1746503443456,-500.0,0.00019998,2]
[360036490,1746503443466,-150.0,0.00019998,2]
[360036491,1746503443476,-500.0,0.00019998,2]
[360036492,1746503443486,-589.89968229,0.00019998,2]
[360036493,1746503443496,-343.75816303,0.00019998,2]
[360036494,1746503443507,-500.0,0.00019999,2]
[360036495,1746503443516,-331.15614344,0.00019999,2]
[360036496,1746503443527,-151.0,0.00019999,2]
[360036497,1746503443537,-151.0,0.00019999,2]
[360036498,1746503443547,-151.0,0.00019999,2]
[360036499,1746503443556,-151.0,0.00019999,2]
[360036500,1746503443565,-151.0,0.00019999,2]
[360036501,1746503443575,-1294.52641,0.00019999,2]
[360036502,1746503443585,-1294.52641,0.00019999,2]
[360036503,1746503443595,-1294.52641,0.00019999,2]
[360036504,1746503443604,-1294.52641,0.00019999,2]
[360036505,1746503443613,-544.220522,0.00019999,2]
[360036506,1746503443623,-544.220522,0.00019999,2]
[360036507,1746503443632,-151.0,0.00019999,2]
[360036508,1746503443641,-151.0,0.00019999,2]
[360036509,1746503443651,-151.0,0.00019999,2]
[360036510,1746503443660,-151.0,0.00019999,2]
[360036511,1746503443670,-151.0,0.00019999,2]
[360036512,1746503443679,-151.0,0.00019999,2]
[360036513,1746503443688,-450.0,0.00019999,2]
[360036514,1746503443698,-4287.58,0.00019999,2]
[360036515,1746503443707,-4287.58,0.00019999,2]
[360036516,1746503443716,-4287.58,0.00019999,2]
[360036517,1746503443725,-4287.58,0.00019999,2]
[360036518,1746503443733,-4287.58,0.00019999,2]
[360036519,1746503443743,-4287.58,0.00019999,2]
[360036520,1746503443754,-4287.58,0.00019999,2]
[360036521,1746503443763,-4287.58,0.00019999,2]
[360036522,1746503443772,-4287.58,0.00019999,2]
[360036524,1746503443782,-4287.58,0.00019999,2]
[360036526,1746503443791,-4287.58,0.00019999,2]
[360036528,1746503443801,-4287.58,0.00019999,2]
[360036529,1746503443811,-4287.58,0.00019999,2]
[360036531,1746503443821,-4287.58,0.00019999,2]
[360036533,1746503443830,-4287.58,0.00019999,2]
[360036535,1746503443841,-4287.58,0.00019999,2]
[360036537,1746503443850,-4287.58,0.00019999,2]
[360036538,1746503443861,-4287.66,0.00019999,2]
[360036539,1746503443870,-40640.50478456,0.00019999,2]
[360036540,1746503443880,-580.44,0.00019999,2]
[360036541,1746503443890,-580.44,0.00019999,2]
[360036542,1746503443899,-580.44,0.00019999,2]
[360036543,1746503443910,-580.44,0.00019999,2]
[360036544,1746503443920,-580.44,0.00019999,2]
[360036545,1746503443929,-580.44,0.00019999,2]
[360036546,1746503443939,-580.44,0.00019999,2]
[360036547,1746503443948,-580.44,0.00019999,2]
[360036549,1746503443958,-580.44,0.00019999,2]
[360036550,1746503443967,-580.44,0.00019999,2]
[360036552,1746503443978,-580.44,0.00019999,2]
[360036554,1746503443987,-580.44,0.00019999,2]
[360036556,1746503443997,-580.44,0.00019999,2]
[360036557,1746503444006,-580.44,0.00019999,2]
[360036558,1746503444015,-580.44,0.00019999,2]
[360036559,1746503444024,-580.44,0.00019999,2]
[360036560,1746503444035,-580.44,0.00019999,2]
[360036561,1746503444044,-580.48657597,0.00019999,2]
[360036562,1746503444054,-450.0,0.00019999,2]
[360036563,1746503444064,-450.0,0.00019999,2]
[360036564,1746503444073,-450.0,0.00019999,2]
[360036565,1746503444083,-450.0,0.00019999,2]
[360036566,1746503444092,-450.0,0.00019999,2]
[360036567,1746503444101,-450.0,0.00019999,2]
[360036568,1746503444110,-450.0,0.00019999,2]
[360036569,1746503444119,-450.0,0.00019999,2]
[360036570,1746503444129,-450.0,0.00019999,2]
[360036571,1746503444138,-450.0,0.00019999,2]
[360036572,1746503444148,-450.0,0.00019999,2]
[360036573,1746503444157,-217.49955241,0.00019999,2]
[360036574,1746503444166,-3101.1,0.00019999,2]
[360036575,1746503444175,-3101.1,0.00019999,2]
[360036576,1746503444186,-3101.1,0.00019999,2]
[360036577,1746503444197,-3101.1,0.00019999,2]
[360036578,1746503444207,-3101.1,0.00019999,2]
[360036579,1746503444217,-3101.1,0.00019999,2]
[360036580,1746503444228,-3101.1,0.00019999,2]
[360036581,1746503444239,-3101.1,0.00019999,2]
[360036582,1746503444248,-3101.1,0.00019999,2]
[360036583,1746503444259,-3101.1,0.00019999,2]
[360036584,1746503444268,-3101.1,0.00019999,2]
[360036585,1746503444277,-3101.1,0.00019999,2]
[360036586,1746503444286,-3101.1,0.00019999,2]
[360036587,1746503444296,-3101.1,0.00019999,2]
[360036588,1746503444306,-3101.1,0.00019999,2]
[360036589,1746503444315,-3101.1,0.00019999,2]
[360036590,1746503444325,-3101.1,0.00019999,2]
[360036591,1746503444334,-3101.1,0.00019999,2]
[360036592,1746503444343,-3101.1,0.00019999,2]
[360036593,1746503444352,-3101.1,0.00019999,2]
[360036594,1746503444362,-3101.1,0.00019999,2]
[360036595,1746503444371,-3101.3045,0.00019999,2]
[360036596,1746503444381,-457.82952224,0.00019999,2]
[360036597,1746503444391,-450.0,0.00019999,2]
[360036598,1746503444400,-450.0,0.00019999,2]
[360036599,1746503444410,-450.0,0.00019999,2]
[360036600,1746503444419,-450.0,0.00019999,2]
[360036601,1746503444428,-450.0,0.00019999,2]
[360036602,1746503444438,-450.0,0.00019999,2]
[360036603,1746503444448,-450.0,0.00019999,2]